fUSD/lending_fUSD_20260410
["ID","MTS","AMOUNT","RATE_DAILY","PERIOD"]
[420185746,1775761771413,-266.0,9.989e-05,2]
[420185747,1775761771434,-266.0,9.989e-05,2]
[420185748,1775761771456,-266.0,9.989e-05,2]
[420185749,1775761771476,-266.0,9.989e-05,2]
[420185750,1775761771497,-418.56,0.0001008,2]
[420185751,1775761771517,-31083.37553578,0.000107,2]
[420185752,1775761771539,-433.0,0.0001087,2]
[420185753,1775761771560,-600.0,0.000109,3]
[420185754,1775761771582,-336.06746854,0.000109,2]
[420185755,1775761771604,-336.0674685,0.000109,2]
[420185756,1775761771626,-336.0674685,0.000109,2]
[420185757,1775761771647,-500.0,0.00010959,2]
[420185758,1775761771671,-150.0,0.00011,2]
[420185759,1775761771695,-2145.52210521,0.00011099,2]
[420185760,1775761771716,-2145.52210516,0.00011099,2]
[420185761,1775761771736,-2145.52210516,0.00011099,2]
[420185762,1775761771757,-3415.63880694,0.00011099,2]
[420185763,1775761771777,-3415.63880694,0.00011099,2]
[420185764,1775761771798,-2145.52210516,0.00011157,2]
[420185765,1775761771819,-3415.63880694,0.00011194,2]
[420185766,1775761771840,-336.0674685,0.00011892,2]
[420185767,1775761771862,-2145.52210516,0.00011914,2]
[420185768,1775761771883,-736.0,0.00011957,2]
[420185769,1775761771904,-3415.63880694,0.0001196,2]
[420185770,1775761771929,-175.4151,0.000124,2]
[420185771,1775761771971,-1500.0,0.00012496,2]
[420185772,1775761771993,-2145.52210516,0.00012672,2]
[420185773,1775761772015,-3415.63880694,0.00012726,2]
[420185774,1775761772036,-160.0,0.00012843,2]
[420185775,1775761772057,-336.0674685,0.00012894,2]
[420185776,1775761772077,-271.44,0.00012912,2]
[420185777,1775761772098,-250.0,0.00013,2]
[420185778,1775761772119,-250.0,0.00013,2]
[420185779,1775761772138,-505.0,0.000131,2]
[420185780,1775761772159,-2145.52210516,0.00013429,2]
[420185781,1775761772179,-3415.63880694,0.00013492,2]
[420185782,1775761772200,-538.64756101,0.00013698,2]
[420185783,1775761772221,-500.0,0.00013698,2]
[420185784,1775761772242,-500.0,0.00013698,2]
[420185785,1775761772262,-500.0,0.00013698,2]
[420185786,1775761772282,-500.0,0.00013698,2]
[420185787,1775761772302,-500.0,0.00013698,2]
[420185788,1775761772323,-500.0,0.00013698,2]
[420185789,1775761772343,-500.0,0.00013698,2]
[420185790,1775761772363,-500.0,0.00013698,2]
[420185791,1775761772383,-500.0,0.00013698,2]
[420185792,1775761772404,-500.0,0.00013698,2]
[420185793,1775761772424,-500.0,0.00013698,2]
[420185794,1775761772445,-500.0,0.00013698,2]
[420185795,1775761772464,-500.0,0.00013698,2]
[420185796,1775761772484,-500.0,0.00013698,2]
[420185797,1775761772505,-500.0,0.00013698,2]
[420185798,1775761772526,-500.0,0.00013698,2]
[420185799,1775761772546,-500.0,0.00013698,2]
[420185800,1775761772566,-500.0,0.00013698,2]
[420185801,1775761772586,-500.0,0.00013698,2]
[420185802,1775761772607,-500.0,0.00013698,2]
[420185803,1775761772628,-513.05326966,0.00013698,2]
[420185804,1775761772648,-500.0,0.00013698,2]
[420185805,1775761772668,-518.5252397,0.00013698,2]
[420185806,1775761772689,-500.0,0.00013698,2]
[420185807,1775761772709,-500.0,0.00013698,2]
[420185808,1775761772732,-500.0,0.00013698,2]
[420185809,1775761772752,-200.0,0.00013699,2]
[420185810,1775761772772,-961.16,0.00013699,2]
[420185811,1775761772792,-170.82307863,0.00013699,2]
[420185812,1775761772813,-159.64615364,0.00013699,2]
[420185813,1775761772834,-205.1364,0.000137,2]
[420185814,1775761772855,-336.0674685,0.00013896,2]
[420185815,1775761772885,-1100.30832852,0.000139,3]
[420185816,1775761772928,-4546.36351831,0.000139,3]
[420185817,1775761772950,-1600.0,0.00014028,2]
[420185818,1775761777108,300.0,8.983e-05,2]
[420185819,1775761778325,420.0,9.882e-05,2]
[420185820,1775761782455,197.0,0.0001087,2]
[420185821,1775761814313,250.0,0.00011871,2]
[420185833,1775761833083,-382.67668998,0.00014148,2]
[420185834,1775761833093,-195.0,0.00014155,2]
[420185835,1775761833102,-505.0,0.00014162,2]
[420185836,1775761833112,-1663.89090602,0.00014186,2]
[420185837,1775761833124,-481.63119914,0.00014186,2]
[420185838,1775761833134,-195.0,0.00014304,2]
[420185839,1775761833145,-10.36880086,0.00014304,2]
[420185840,1775761833158,-184.63119914,0.00014304,2]
[420185841,1775761833168,-961.16,0.00014384,2]
[420185842,1775761833177,-669.0,0.00014639,2]
[420185843,1775761833186,-669.0,0.00014696,2]
[420185844,1775761833196,-500.0,0.00014697,2]
[420185845,1775761833205,-642.8331658,0.00014697,2]
[420185846,1775761833214,-500.0,0.00014697,2]
[420185847,1775761833224,-601.3376128,0.00014712,2]
[420185848,1775761833234,-11564.18486161,0.00014712,2]
[420185849,1775761833243,-1191.11104075,0.00014712,2]
[420185850,1775761833252,-500.0,0.00014712,2]
[420185851,1775761833262,-578.20924308,0.00014712,2]
[420185852,1775761833272,-200.0,0.00014712,2]
[420185853,1775761833282,-151.0,0.00014712,2]
[420185854,1775761833292,-151.0,0.00014712,2]
[420185855,1775761833301,-151.0,0.00014712,2]
[420185856,1775761833310,-151.0,0.00014712,2]
[420185857,1775761833321,-151.0,0.00014712,2]
[420185858,1775761833331,-174.61919141,0.00014712,2]
[420185859,1775761833340,-151.0,0.00014712,2]
[420185860,1775761833350,-151.0,0.00014712,2]
[420185861,1775761833360,-151.0,0.00014712,2]
[420185862,1775761833369,-151.0,0.00014712,2]
[420185863,1775761833379,-151.0,0.00014712,2]
[420185864,1775761833388,-151.0,0.00014712,2]
[420185865,1775761833404,-151.0,0.00014712,2]
[420185866,1775761833426,-151.0,0.00014712,2]
[420185867,1775761833436,-151.0,0.00014712,2]
[420185868,1775761833446,-151.0,0.00014712,2]
[420185869,1775761833456,-174.61919141,0.00014712,2]
[420185870,1775761833466,-500.0,0.00014767,2]
[420185871,1775761833475,-2460.0,0.00014777,2]
[420185872,1775761833485,-500.0,0.00014822,2]
[420185873,1775761833494,-1000.0,0.00014829,2]
[420185874,1775761833504,-1503.2280866,0.00014855,2]
[420185875,1775761833515,-500.0,0.00014877,2]
[420185876,1775761833524,-1353.50403852,0.00014892,2]
[420185877,1775761833537,-3646.49596148,0.00014892,2]
[420185878,1775761833547,-336.0674685,0.00014898,2]
[420185879,1775761833558,-155.07026754,0.000149,2]
[420185880,1775761833568,-2851.17,0.000149,2]
[420185881,1775761833577,-712.79,0.000149,2]
[420185882,1775761833587,-1200.0,0.000149,5]
[420185883,1775761833596,-500.0,0.00014932,2]
[420185884,1775761833606,-1264.0,0.00014943,2]
[420185885,1775761833615,-926.0,0.00014943,2]
[420185886,1775761833624,-1218.0,0.00014943,2]
[420185887,1775761833634,-2145.52210516,0.00014943,2]
[420185888,1775761833644,-160.0,0.00014955,7]
[420185889,1775761833653,-390.378539,0.00014955,7]
[420185890,1775761833663,-620.757079,0.00014955,7]
[420185891,1775761833672,-211.963204,0.00014955,7]
[420185892,1775761833682,-664.0,0.0001496,2]
[420185893,1775761833691,-168.0,0.00014964,2]
[420185894,1775761833700,-700.0,0.0001498,2]
[420185895,1775761833709,-168.0,0.00014981,2]
[420185896,1775761833718,-168.0,0.00014982,2]
[420185897,1775761833728,-266.68828513,0.00014984,2]
[420185898,1775761833737,-500.0,0.00014987,2]
[420185899,1775761833747,-1072.04030549,0.00014991,5]
[420185900,1775761833758,-586.0,0.00014992,2]
[420185901,1775761833767,-25638.12748793,0.00014992,2]
[420185902,1775761833781,-39096.52025152,0.00014992,2]
[420185903,1775761833794,-47397.40305179,0.00014992,2]
[420185904,1775761833806,-3383.42896817,0.00014992,2]
[420185905,1775761833819,-1263.98453803,0.00014992,2]
[420185906,1775761833830,-7393.85317137,0.00014992,2]
[420185907,1775761833842,-1109.24731293,0.00014992,2]
[420185908,1775761833854,-596.61311656,0.00014992,2]
[420185909,1775761833865,-1421.96416629,0.00014992,2]
[420185910,1775761833890,-30834.35869511,0.00014992,2]
[420185911,1775761833901,-3113.29538,0.00014992,2]
[420185912,1775761833912,-586.0,0.00014998,2]
[420185913,1775761833923,-300.0,0.00015,2]
[420185914,1775761833933,-1878.0,0.00015,2]
[420185915,1775761833942,-664.0,0.00015011,2]
[420185916,1775761833951,-451.0,0.00015024,5]
[420185917,1775761833962,-1000.0,0.00015033,2]
[420185918,1775761833972,-1163.79,0.00015041,2]
[420185919,1775761833982,-500.0,0.00015042,2]
[420185920,1775761833992,-500.0,0.00015056,2]
[420185921,1775761834002,-500.0,0.00015056,2]
[420185922,1775761834011,-4313.93,0.00015057,2]
[420185923,1775761834022,-586.0,0.00015058,2]
[420185924,1775761834032,-168.0,0.0001506,2]
[420185925,1775761834041,-961.16,0.00015068,2]
[420185926,1775761834051,-302.5,0.00015068,2]
[420185927,1775761834060,-800.64291471,0.00015068,2]
[420185928,1775761834070,-162.0,0.0001507,2]
[420185929,1775761834079,-586.0,0.00015073,2]
[420185930,1775761834088,-151.0,0.00015084,5]
[420185931,1775761834098,-500.0,0.00015097,2]
[420185932,1775761834107,-500.0,0.00015152,2]
[420185933,1775761834116,-166.66,0.00015159,2]
[420185934,1775761834126,-164.07877721,0.0001516,2]
[420185935,1775761834136,-1503.22808659,0.00015178,2]
[420185936,1775761834146,-1800.0,0.000152,5]
[420185937,1775761834155,-500.0,0.00015207,2]
[420185938,1775761834164,-586.0,0.00015218,2]
[420185939,1775761834174,-505.0,0.00015224,3]
[420185940,1775761834184,-586.0,0.00015248,2]
[420185941,1775761834194,-11992.05970149,0.0001526,2]
[420185942,1775761834204,-1235.18214925,0.0001526,2]
[420185943,1775761834215,-200.0,0.0001526,2]
[420185944,1775761834224,-181.08010149,0.0001526,2]
[420185945,1775761834234,-181.08010149,0.0001526,2]
[420185946,1775761834245,-500.0,0.00015262,2]
[420185947,1775761834254,-1000.0,0.00015287,2]
[420185948,1775761834264,-1000.0,0.00015287,2]
[420185949,1775761834274,-1000.0,0.00015287,2]
[420185950,1775761834283,-1000.0,0.00015287,2]
[420185951,1775761834293,-1000.0,0.00015287,2]
[420185952,1775761834303,-1000.0,0.00015287,2]
[420185953,1775761834312,-1000.0,0.00015287,2]
[420185954,1775761834323,-1000.0,0.00015287,2]
[420185955,1775761834336,-1000.0,0.00015287,2]
[420185956,1775761834349,-463.15927505,0.00015287,2]
[420185957,1775761834363,-536.84072495,0.00015287,2]
[420185958,1775761834373,-1000.0,0.00015287,2]
[420185959,1775761834382,-1000.0,0.00015287,2]
[420185960,1775761834392,-649.278,0.00015287,2]
[420185961,1775761834402,-718.35225711,0.00015288,2]
[420185962,1775761834414,-300.42253489,0.00015288,2]
[420185963,1775761834425,-1019.10163297,0.00015288,2]
[420185964,1775761834434,-1123.26277695,0.00015288,2]
[420185965,1775761834443,-1049.84122461,0.00015288,2]
[420185966,1775761834452,-1028.70412834,0.00015288,2]
[420185967,1775761834463,-1031.10938922,0.00015288,2]
[420185968,1775761834474,-1094.21170224,0.00015288,2]
[420185969,1775761834483,-1099.9553576,0.00015288,2]
[420185970,1775761834493,-298.93651943,0.00015288,2]
[420185971,1775761834505,-806.83077578,0.00015288,2]
[420185972,1775761834516,-1109.71956959,0.00015288,2]
[420185973,1775761834525,-428.544127,0.00015288,2]
[420185974,1775761834536,-420.0,0.00015288,2]
[420185975,1775761834548,-239.88433105,0.00015288,2]
[420185976,1775761834558,-1031.61194543,0.00015288,2]
[420185977,1775761834568,-1008.2883945,0.00015288,2]
[420185978,1775761834578,-38.6790126,0.00015288,2]
[420185979,1775761834923,500.0,0.00013698,2]
[420185980,1775761837551,-150.0,0.000147,2]
[420185981,1775761837562,-161.83154229,0.00015288,2]
[420185982,1775761837671,-893.76928382,0.00015288,2]
[420185983,1775761837681,-1334.63285176,0.00015288,2]
[420185984,1775761837692,-205.136071,0.00015288,2]
[420185985,1775761837702,-164.432061,0.00015288,7]
[420185986,1775761837712,-2400.0,0.000153,5]
[420185987,1775761837721,-586.0,0.00015317,2]
[420185988,1775761837731,-500.0,0.00015317,2]
[420185989,1775761837741,-325.01261393,0.0001532,2]
[420185990,1775761837751,-230.64138788,0.0001532,2]
[420185991,1775761837761,-448.46215194,0.0001532,2]
[420185992,1775761837771,-177.289,0.00015358,2]
[420185993,1775761837782,-664.0,0.00015359,2]
[420185994,1775761837792,-966.0,0.00015363,2]
[420185995,1775761837802,-229.0,0.00015363,2]
[420185996,1775761837813,-1715.0,0.00015363,2]
[420185997,1775761837824,-7347.0,0.00015363,2]
[420185998,1775761837835,-11257.0,0.00015363,2]
[420185999,1775761837845,-1809.0,0.00015363,2]
[420186000,1775761837856,-1304.0,0.00015363,2]
[420186001,1775761837866,-4706.0,0.00015363,2]
[420186002,1775761837876,-887.0,0.00015363,2]
[420186003,1775761837886,-1466.0,0.00015363,2]
[420186004,1775761837896,-500.0,0.00015372,2]
[420186005,1775761837906,-1000.0,0.000154,2]
[420186006,1775761837916,-313.0,0.000154,2]
[420186007,1775761837926,-879.0,0.000154,2]
[420186008,1775761837941,-3000.0,0.000154,5]
[420186009,1775761837951,-306.0,0.000154,2]
[420186010,1775761837961,-586.0,0.00015411,2]
[420186011,1775761837971,-500.0,0.00015427,2]
[420186012,1775761837981,-162.0,0.00015436,2]
[420186013,1775761837991,-415.0,0.00015457,2]
[420186014,1775761838001,-2000.0,0.0001546,2]
[420186015,1775761838011,-1573.0,0.00015468,2]
[420186016,1775761838020,-500.0,0.00015475,2]
[420186017,1775761838030,-200.0,0.00015475,2]
[420186018,1775761838041,-500.0,0.00015482,2]
[420186019,1775761838051,-664.0,0.00015482,2]
[420186020,1775761838062,-150.0,0.0001549,2]
[420186022,1775761838072,-1347.0,0.0001549,2]
[420186024,1775761838082,-622.0,0.0001549,2]
[420186026,1775761838091,-3524.0,0.0001549,2]
[420186029,1775761838102,-10000.0,0.000155,2]
[420186031,1775761838111,-224.46877204,0.000155,2]
[420186033,1775761838121,-600.0,0.000155,5]
[420186035,1775761838131,-1503.22808659,0.000155,2]
[420186037,1775761838140,-1222.60825569,0.000155,2]
[420186039,1775761838150,-485.0,0.00015507,5]
[420186041,1775761838164,-4000.0,0.00015507,2]
[420186043,1775761838183,-2000.0,0.0001551,2]
[420186044,1775761838193,-500.0,0.00015537,2]
[420186045,1775761838202,-2000.0,0.0001556,2]
[420186046,1775761838212,-586.0,0.00015561,2]
[420186047,1775761838222,-195.0,0.00015563,2]
[420186048,1775761838232,-500.0,0.00015573,2]
[420186049,1775761838242,-500.0,0.00015573,2]
[420186050,1775761838252,-500.0,0.00015573,2]
[420186051,1775761838262,-500.53423571,0.00015573,2]
[420186052,1775761838271,-500.0,0.00015573,2]
[420186053,1775761838282,-500.0,0.00015573,2]
[420186054,1775761838292,-500.050472,0.00015573,2]
[420186055,1775761838301,-500.0,0.00015573,2]
[420186056,1775761838311,-381.26286329,0.00015573,2]
[420186057,1775761838321,-500.0,0.00015573,2]
[420186058,1775761838332,-500.43133974,0.00015573,2]
[420186059,1775761838342,-500.0,0.00015592,2]
[420186060,1775761838352,-330.42129237,0.00015599,2]
[420186061,1775761838362,-500.0,0.00015599,2]
[420186062,1775761838372,-500.0,0.00015599,2]
[420186063,1775761838382,-500.0,0.00015599,2]
[420186064,1775761838392,-644.8,0.00015599,2]
[420186065,1775761838402,-2819.81926121,0.000156,2]
[420186066,1775761838664,-10915.79728157,0.000156,2]
[420186067,1775761838676,-6275.55825757,0.000156,2]
[420186068,1775761838687,-42591.66300483,0.000156,2]
[420186069,1775761838699,-355.9,0.000156,2]
[420186070,1775761838719,-9561.50740717,0.000156,2]
[420186071,1775761838730,-467.4334257,0.000156,2]
[420186072,1775761838742,-339.88265974,0.000156,2]
[420186073,1775761838758,-263109.92663163,0.000156,2]
[420186074,1775761838770,-381.2224055,0.000156,2]
[420186075,1775761838781,-4260.6368868,0.000156,2]
[420186076,1775761838793,-840.4988168,0.000156,2]
[420186080,1775761839838,-550.0,0.000156,2]
[420186082,1775761840846,-109064.14763786,0.000156,2]
[420186084,1775761840856,-98688.52795402,0.000156,2]
[420186086,1775761840884,-1000.0,0.000156,2]
[420186087,1775761840896,-333.34182303,0.000156,2]
[420186110,1775761842678,-98014.02706957,0.000156,2]
[420186111,1775761842688,-4574.95542491,0.000156,3]
[420186112,1775761842698,-284025.36531829,0.000156,2]
[420186113,1775761842814,-9375.32608782,0.000156,2]
[420186114,1775761842828,-604.0,0.000156,2]
[420186115,1775761842840,-12518.31851045,0.000156,2]
[420186126,1775761845407,-2091.53286296,0.00014155,2]
[420186128,1775761845534,-408.46713704,0.00014155,2]
[420186129,1775761845546,-2500.0,0.00014304,2]
[420186130,1775761845556,-2500.0,0.00014304,2]
[420186131,1775761845565,-2500.0,0.00014304,2]
[420186132,1775761845968,-2500.0,0.00015563,2]
[420186133,1775761845979,-174787.06529909,0.000156,2]
[420186134,1775761845990,-109014.9999975,0.000156,2]
[420186135,1775761848547,-764.132,0.000156,2]
[420186136,1775761867384,52146.5402,8.884e-05,2]
[420186137,1775761870675,150.0,0.00012496,2]
[420186139,1775762317129,3195.0,8.901e-05,2]
[420186141,1775762621160,165.19,6.913e-05,2]
[420186142,1775762950115,-300.0,0.00012395,2]
[420186143,1775762950139,-96483.9655,0.00012396,2]
[420186144,1775762950161,-1200.0,0.00012495,2]
[420186145,1775762950182,-150.0,0.00012495,2]
[420186146,1775762950203,-300.0,0.00012495,2]
[420186147,1775762950224,-600.0,0.00012495,2]
[420186148,1775762950246,-250.0,0.00012495,2]
[420186149,1775762950266,-59798.81,0.00012496,2]
[420186150,1775762950287,-600.0,0.00012501,2]
[420186151,1775762950308,-600.0,0.00012501,2]
[420186152,1775762950330,-600.0,0.00012501,2]
[420186153,1775762950366,-250.0,0.00012577,2]
[420186154,1775762950393,-166.66,0.00012871,2]
[420186155,1775762950413,-250.0,0.00013,2]
[420186156,1775762950435,-505.0,0.000131,2]
[420186157,1775762950455,-166.66,0.00013296,2]
[420186158,1775762950475,-500.0,0.00013475,2]
[420186159,1775762950496,-255.0,0.00013595,2]
[420186160,1775762950517,-420.0,0.00013602,2]
[420186161,1775762950539,-150.0,0.00013699,2]
[420186162,1775762950561,-166.66,0.00013699,2]
[420186163,1775762950582,-192.8,0.00013699,2]
[420186164,1775762950605,-150.0,0.000137,2]
[420186165,1775762950626,-166.66,0.00013721,2]
[420186166,1775762950648,-1779.17671687,0.00013745,2]
[420186167,1775762950669,-300.0,0.00013745,2]
[420186168,1775762950690,-300.0,0.00013745,2]
[420186169,1775762950714,-300.0,0.00013745,2]
[420186170,1775762950735,-291.34772636,0.00013745,2]
[420186171,1775762950757,-250.0,0.00013745,2]
[420186172,1775762950780,-300.0,0.00013745,2]
[420186173,1775762950820,-300.0,0.00013745,2]
[420186174,1775762950841,-300.0,0.00013745,2]
[420186175,1775762950862,-300.0,0.00013745,2]
[420186176,1775762950883,-600.0,0.00013745,2]
[420186177,1775762950903,-2500.0,0.00013745,2]
[420186178,1775762950923,-2500.0,0.00013745,2]
[420186179,1775762950943,-2500.0,0.00013745,2]
[420186180,1775762950963,-2500.0,0.00013745,2]
[420186181,1775762950984,-2500.0,0.00013745,2]
[420186182,1775762951005,-500.0,0.00013745,2]
[420186183,1775762951029,-500.0,0.00013745,2]
[420186184,1775762951049,-500.0,0.00013745,2]
[420186185,1775762951070,-500.0,0.00013745,2]
[420186186,1775762951091,-500.0,0.00013745,2]
[420186187,1775762951110,-200.0,0.00013745,2]
[420186188,1775762951131,-200.0,0.00013745,2]
[420186189,1775762951151,-200.0,0.00013745,2]
[420186190,1775762951190,-200.0,0.00013745,2]
[420186191,1775762951211,-230.14115186,0.00013745,2]
[420186192,1775762951231,-2440.84,0.00013819,2]
[420186193,1775762951252,-37182.33350491,0.00013826,2]
[420186194,1775762956128,-600.0,0.00012396,2]
[420186195,1775762956148,-600.0,0.00012455,2]
[420186196,1775762956168,-386.86615397,0.00012455,2]
[420186197,1775762990819,-1963.04503221,0.00012401,2]
[420186198,1775762990854,-213.13384603,0.00012455,2]
[420186199,1775762990886,-600.0,0.00012455,2]
[420186200,1775762990911,-1963.0450322,0.0001279,2]
[420186201,1775762990943,-1963.0450322,0.00013179,2]
[420186202,1775762990968,-532.69591336,0.00013567,2]
[420186205,1775763031599,-1430.34911884,0.00013567,2]
[420186206,1775763031610,-600.0,0.00013635,2]
[420186207,1775763031620,-195.0,0.00013636,2]
[420186208,1775763031630,-2500.0,0.0001375,2]
[420186209,1775763031641,-2500.0,0.0001375,2]
[420186210,1775763031651,-2500.0,0.0001375,2]
[420186211,1775763031661,-86.32848373,0.0001375,2]
[420186212,1775763031672,-2344.31882983,0.0001375,2]
[420186213,1775763031683,-69.35268644,0.0001375,2]
[420186214,1775763031692,-337.64731356,0.0001375,2]
[420186215,1775763031704,-162.35268644,0.0001375,2]
[420186216,1775763031713,-500.0,0.0001375,2]
[420186217,1775763031723,-500.0,0.0001375,2]
[420186218,1775763031733,-600.30544057,0.0001375,2]
[420186219,1775763031742,-200.0,0.0001375,2]
[420186220,1775763031752,-34.2313699,0.0001375,2]
[420186221,1775763031763,-165.7686301,0.0001375,2]
[420186222,1775763031774,-200.0,0.0001375,2]
[420186223,1775763031783,-200.0,0.0001375,2]
[420186224,1775763031793,-449.27835726,0.00013826,2]
[420186225,1775763031817,-9618.00813783,0.00013826,2]
[420186226,1775763031827,-165.19,0.00013826,2]
[420186227,1775763031837,-150.0,0.000139,2]
[420186228,1775763031851,-160.0,0.00013917,2]
[420186229,1775763031860,-166.66,0.00013933,2]
[420186230,1775763031870,-1963.0450322,0.00013956,2]
[420186231,1775763031879,-160.27,0.00013995,2]
[420186232,1775763031890,-2000.0,0.00014017,2]
[420186233,1775763031900,-1573.0,0.0001411,2]
[420186234,1775763031909,-166.66,0.00014146,2]
[420186235,1775763031919,-2408.7,0.00014162,2]
[420186236,1775763031928,-247.18,0.00014162,2]
[420186237,1775763031938,-260.4,0.00014162,2]
[420186238,1775763031947,-166.66,0.00014167,2]
[420186240,1775763031962,-505.0,0.00014197,2]
[420186242,1775763031983,-1963.0450322,0.00014345,2]
[420186244,1775763031992,-1573.0,0.000144,2]
[420186246,1775763032001,-500.0,0.000144,2]
[420186248,1775763032010,-500.0,0.000144,2]
[420186250,1775763032019,-166.66,0.00014402,2]
[420186252,1775763032028,-1099.98,0.0001444,2]
[420186253,1775763032037,-200.0,0.0001457,2]
[420186255,1775763032047,-1191.11104075,0.0001457,2]
[420186257,1775763032057,-578.20924308,0.0001457,2]
[420186259,1775763032066,-500.06728785,0.0001457,2]
[420186261,1775763032076,-601.3376128,0.0001457,2]
[420186263,1775763032085,-7965.41053268,0.0001457,2]
[420186265,1775763032094,-174.61919141,0.0001457,2]
[420186267,1775763032103,-160.0,0.0001457,2]
[420186269,1775763032112,-151.0,0.0001457,2]
[420186271,1775763032122,-1500.0,0.0001457,2]
[420186272,1775763032131,-1500.0,0.0001457,2]
[420186273,1775763032141,-1500.0,0.0001457,2]
[420186274,1775763032150,-174.61919141,0.0001457,2]
[420186275,1775763032159,-1500.0,0.0001457,2]
[420186276,1775763032168,-174.61919141,0.0001457,2]
[420186277,1775763032177,-1500.0,0.0001457,2]
[420186278,1775763032186,-1500.0,0.0001457,2]
[420186279,1775763032196,-1500.0,0.0001457,2]
[420186280,1775763032205,-793.61191827,0.0001457,2]
[420186281,1775763032217,-530.59640349,0.0001457,2]
[420186282,1775763032226,-170.0,0.0001457,2]
[420186283,1775763032258,-294.28535892,0.0001457,2]
[420186284,1775763032271,-449.22234257,0.0001457,2]
[420186285,1775763032282,-578.20924308,0.0001457,2]
[420186286,1775763032309,-279.9045709,0.0001457,2]
[420186287,1775763032328,-500.0,0.00014571,2]
[420186288,1775763032361,-166.66,0.00014571,2]
[420186290,1775763032374,-373.15777667,0.00014586,2]
[420186292,1775763032384,-8260.13072239,0.00014625,2]
[420186294,1775763032394,-151.0,0.00014625,2]
[420186296,1775763032404,-166.66,0.00014636,2]
[420186298,1775763032413,-8565.75555911,0.0001468,2]
[420186300,1775763032422,-151.0,0.0001468,2]
[420186302,1775763032431,-1963.0450322,0.00014734,2]
[420186304,1775763032441,-8882.6885148,0.00014735,2]
[420186306,1775763032450,-151.0,0.00014735,2]
[420186308,1775763032459,-2469.0,0.00014777,2]
[420186310,1775763032469,-9211.34798985,0.0001479,2]
[420186312,1775763032478,-151.0,0.0001479,2]
[420186314,1775763032487,-500.0,0.00014845,2]
[420186316,1775763032496,-2653.856011,0.00014845,2]
[420186318,1775763032505,-166.66,0.0001487,2]
[420186320,1775763032514,-162.0,0.00014893,2]
[420186322,1775763032525,-900.0,0.000149,5]
[420186324,1775763032534,-300.0,0.00014924,2]
[420186326,1775763032543,-300.0,0.00014924,2]
[420186328,1775763032553,-300.0,0.00014924,2]
[420186330,1775763032563,-300.0,0.00014924,2]
[420186332,1775763032572,-300.0,0.00014924,2]
[420186334,1775763032582,-476.14226398,0.00014924,2]
[420186335,1775763032591,-166.66,0.00014996,2]
[420186337,1775763032600,-2500.0,0.00014998,2]
[420186338,1775763032609,-500.0,0.00014998,2]
[420186339,1775763032618,-200.0,0.00014998,2]
[420186340,1775763032627,-300.0,0.00015,2]
[420186341,1775763032637,-168.0,0.00015016,2]
[420186342,1775763032646,-168.0,0.00015038,2]
[420186343,1775763032656,-381.4107978,0.00015068,2]
[420186344,1775763032669,-418.5892022,0.00015068,2]
[420186345,1775763032679,-760.98862681,0.000151,5]
[420186346,1775763032690,-1139.01137319,0.000151,5]
[420186347,1775763032699,-175.3675,0.000151,2]
[420186348,1775763032708,-306.0,0.000151,2]
[420186349,1775763032718,-1235.18214925,0.00015118,2]
[420186350,1775763032727,-200.0,0.00015118,2]
[420186351,1775763032736,-198.94605926,0.00015118,2]